Cogmind - Beta 13 @@@ ROGUE MODE // 2024.05.07 @ 17:33:09 Player: Johnny2001 Result: Destroyed by Q4-6PK(R) with Subdweller Machine Gun Performance ------------- Evolutions (0) 0 Regions Visited (2) 400 Robots Destroyed (10) 50 Value Destroyed (255) 255 Prototype IDs (0) 0 Alien Tech Used (0) 0 Bonus (0) 0 TOTAL SCORE: 705 Bonus ------- None Cogmind --------- Core Integrity 0/250 Matter 299/300 Energy 100/100 System Corruption 0% Temperature Hot (254) Movement Core (200) Ox3 Location -10/Subcaves Parts ------- > --- POWER (1) -------- (None) > --- PROPULSION (2) --- (None) > --- UTILITY (2) ------ Medium Storage Unit > --- WEAPON (2) ------- Light Assault Rifle > --- INVENTORY (10) --- Light Ion Engine Aluminum Leg Aluminum Leg Aluminum Leg Aluminum Leg Wheel Small Storage Unit EM Pulse Gun Light Assault Rifle Peak State ------------ > --- POWER ------------ Light Ion Engine > --- PROPULSION ------- Aluminum Leg Aluminum Leg > --- UTILITY ---------- Medium Storage Unit High-powered Tractor Beam > --- WEAPON ----------- Assault Rifle Light Assault Rifle > --- INVENTORY -------- Light Ion Engine Light Treads Light Treads Aluminum Leg Aluminum Leg Wheel Small Storage Unit EM Pulse Gun Light Assault Rifle Light Assault Rifle [Rating: 9] Favorites ----------- Power Light Ion Engine Engine Light Ion Engine Propulsion Aluminum Leg Leg Aluminum Leg Utility High-powered Tractor Beam Device High-powered Tractor Beam Storage Small Storage Unit Weapon Light Assault Rifle Ballistic Gun Light Assault Rifle Build | -11 -10 -10 ------- Run | Yrd Mat Sub Slots Evolved . | . . . Power . | . . . Propulsion . | . . . Utility . | . . . Weapon . | . . . Parts Attached 11 | 5 5 1 Power 1 | . 1 . Engine 1 | . 1 . Core . | . . . Reactor . | . . . Propulsion 4 | 2 2 . Treads . | . . . Leg 4 | 2 2 . Wheel . | . . . Hover . | . . . Flight . | . . . Utility 3 | 1 2 . Device 1 | . 1 . Storage 2 | 1 1 . Processor . | . . . Hackware . | . . . Protection . | . . . Artifact . | . . . Weapon 3 | 2 . 1 Energy Gun . | . . . Energy Cannon . | . . . Ballistic Gun 3 | 2 . 1 Ballistic Cannon . | . . . Launcher . | . . . Special Weapon . | . . . Impact Weapon . | . . . Slashing Weapon . | . . . Piercing Weapon . | . . . Special Melee Weapon . | . . . Unidentified Prototypes . | . . . Parts Lost 6 | . . 6 Power 1 | . . 1 Propulsion 2 | . . 2 Utility 1 | . . 1 Weapon 2 | . . 2 Highest Loss Streak 6 | . . 6 To Critical Strikes . | . . . Average Slot Usage (%) 97 | . 98 89 Engine 13 | . 14 11 Leg 27 | . 28 25 Device 12 | . 13 11 Storage 14 | . 14 14 Ballistic Gun 27 | . 28 25 Naked Turns . | . . . Heaviest Build 17 | 8 17 17 Greatest Support 20 | 20 20 20 Greatest Overweight (x) . | . . . Average Overweight (x) . | . . . Largest Inventory Capacity 10 | 8 10 10 Average Capacity 8 | 6 8 10 Most Carried 10 | 7 10 10 Average Carried 7 | 4 7 9 Final Capacity 10 | 8 10 10 Final Carried 10 | 7 10 9 Class Distribution -------------------- 100% | Mutant Dominant Class ---------------- Mutant | -10/Materials Mutant | -10/Subcaves Resources | -11 -10 -10 ----------- Run | Yrd Mat Sub Matter Collected 426 | 237 167 22 Remotely 189 | . 167 22 Salvage Created 345 | . 308 37 Parts 29 | . 23 6 Haulers Intercepted 1 | . 1 . Recyclers Shooed . | . . . Parts Field Recycled . | . . . Retrieved Matter . | . . . Parts Self-Destructed 6 | . . 6 Prevented . | . . . Kills | -11 -10 -10 ------- Run | Yrd Mat Sub Combat Hostiles Destroyed 9 | . 8 1 Guns 9 | . 8 1 Classes Destroyed 4 | . 3 1 Hauler 1 | . 1 . Swarmer 3 | . 3 . Grunt 5 | . 5 . Subdweller 1 | . . 1 Best Kill Streak 3 | . 3 1 Combat Bots Only 3 | . 3 1 Max Kills in Single Turn 1 | . 1 1 Gunslinging . | . . . Exploded . | . . . Melee . | . . . Uniques/NPCs Destroyed . | . . . Combat | -11 -10 -10 -------- Run | Yrd Mat Sub Hostile Shots Fired 76 | . 31 45 Missed 16 | . 8 8 Damage Taken 981 | . 259 722 Core 256 | . 46 210 Absorbed by Shields . | . . . Core Remaining (%) 100 | 100 . . Volleys Fired 41 | . 26 15 Largest 2 | . 2 2 Hottest 40 | . 40 40 Shots Fired 73 | . 52 21 Gun 73 | . 52 21 Cannon . | . . . Launcher . | . . . Special . | . . . Kinetic 73 | . 52 21 Thermal . | . . . Explosive . | . . . Electromagnetic . | . . . Robot Hit Streak 14 | . 14 13 Robot Miss Streak 3 | . 3 2 Penetration Max . | . . . Secondary Targets . | . . . Shots Hit Robots 53 | . 35 18 Core Hits 23 | . 17 6 Critical Kills 1 | . . 1 Critical Parts Destroyed . | . . . Critical Strikes 1 | . . 1 Destroy 1 | . . 1 Melee Attacks . | . . . Impact . | . . . Slashing . | . . . Piercing . | . . . Sneak Attacks . | . . . Combat Hostiles . | . . . Follow-up Attacks . | . . . Damage Inflicted 507 | . 368 139 Guns 507 | . 368 139 Cannons . | . . . Explosions . | . . . Melee . | . . . Ramming . | . . . Kinetic 507 | . 368 139 Thermal . | . . . Explosive . | . . . Electromagnetic . | . . . Impact . | . . . Slashing . | . . . Piercing . | . . . Highest Corruption . | . . . Average Corruption . | . . . Corruption Purged . | . . . Corruption Blocked . | . . . Overload Shots . | . . . Overflow Damage . | . . . Projectiles . | . . . Explosions . | . . . Melee . | . . . Knockbacks . | . . . Impact . | . . . Kinetic . | . . . Secondary . | . . . Self-Inflicted Damage . | . . . Shots . | . . . Rammed . | . . . Targets Rammed . | . . . Kicked . | . . . Crushed . | . . . Highest Temperature 254 | . 12 254 Average Temperature 20 | . 7 254 Received Heat Transfer 561 | . 126 435 Siege Activations . | . . . Robots Corrupted . | . . . Combat Hostiles . | . . . Parts Fried . | . . . Impact Corruptions . | . . . Robots Melted . | . . . Combat Hostiles . | . . . Parts Melted . | . . . Heat Transferred . | . . . Parts Sabotaged . | . . . Parts Stolen . | . . . Parts Stripped . | . . . Power Chain Reactions . | . . . Alert | -11 -10 -10 ------- Run | Yrd Mat Sub Peak Influence 133 | . 133 . Initial . | . . . Average 30 | . 33 . Maximum Alert Level . | . . . Low Security (%) 100 | 100 100 . Level 1 . | . . . Level 2 . | . . . Level 3 . | . . . Level 4 . | . . . Level 5 . | . . . High Security . | . . . Max Security . | . . . Squads Dispatched 1 | . 1 . Investigation 1 | . 1 . Extermination . | . . . Reinforcement . | . . . Assault . | . . . Garrison . | . . . Intercept . | . . . Searches Triggered . | . . . Construction Impeded . | . . . Haulers Reinforced . | . . . Active Scanning Responses . | . . . Cargo Convoy Interrupts . | . . . Stealth | -11 -10 -10 --------- Run | Yrd Mat Sub Distress Signals . | . . . Communications Jammed . | . . . Distress Signals . | . . . Times Spotted 15 | . 8 7 Peak Tracking Total 4 | . 3 4 Tactical Retreats 2 | . 1 1 Traps | -11 -10 -10 ------- Run | Yrd Mat Sub Traps Triggered 1 | . 1 . Indirectly . | . . . Trap Hack Attempts . | . . . Triggered . | . . . Disarmed . | . . . Reprogrammed . | . . . Reused . | . . . Traps Extracted . | . . . Installed . | . . . Triggered . | . . . Machines | -11 -10 -10 ---------- Run | Yrd Mat Sub Machines Disabled . | . . . Max in Single Turn . | . . . Machines Repaired . | . . . Machines Dismantled . | . . . Machines Sabotaged . | . . . Overloaded Fab Kills . | . . . Hacking | -11 -10 -10 --------- Run | Yrd Mat Sub Machines Accessed 3 | . 3 . Terminals 2 | . 2 . Fabricators . | . . . Repair Stations . | . . . Recycling Units 1 | . 1 . Scanalyzers . | . . . Garrison Access . | . . . Total Hacks 9 | . 9 . Successful 5 | . 5 . Failed 4 | . 4 . Catastrophic . | . . . Database Lockouts . | . . . Manual 2 | . 2 . Terminals 6 | . 6 . Fabricators . | . . . Repair Stations . | . . . Recycling Units 3 | . 3 . Scanalyzers . | . . . Garrison Access . | . . . Terminal Hacks 3 | . 3 . Alert Level 1 | . 1 . Locate Traps 1 | . 1 . Dispatch Records 1 | . 1 . Fabricator Hacks . | . . . Repair Station Hacks . | . . . Recycling Unit Hacks 1 | . 1 . Retrieve Components 1 | . 1 . Scanalyzer . | . . . Garrison Access Hacks . | . . . Unauthorized Hacks 1 | . 1 . Terminals 1 | . 1 . Botnet 1 | . 1 . Fabricators . | . . . Repair Stations . | . . . Recycling Units . | . . . Scanalyzers . | . . . Garrison Access . | . . . Data Cores Recovered . | . . . Used . | . . . Hacking Detections 3 | . 3 . Full Trace Events 1 | . 1 . Feedback Events . | . . . Feedback Blocked . | . . . Robot Schematics Acquired . | . . . Robots Built . | . . . Authchips . | . . . Time . | . . . Total Robot Build Rating . | . . . Part Schematics Acquired . | . . . Parts Built . | . . . Authchips . | . . . Time . | . . . Total Part Build Rating . | . . . Parts Repaired . | . . . Time . | . . . Parts Recycled . | . . . Recycled Matter . | . . . Retrieved Matter . | . . . Retrieved Components 1 | . 1 . Parts Scanalyzed . | . . . Part Schematics Acquired . | . . . Parts Damaged . | . . . Bothacking | -11 -10 -10 ------------ Run | Yrd Mat Sub Used RIF Installer . | . . . Robots Hacked . | . . . Non-combat . | . . . Combat . | . . . Robot Hacks Applied . | . . . Relay Couplers Released . | . . . Fabnet Peak Effective % . | . . . Robots Rewired . | . . . Allies Hacked . | . . . Hacks Repelled . | . . . Allies | -11 -10 -10 -------- Run | Yrd Mat Sub Total Allies . | . . . Largest Group . | . . . Highest-Rated Group . | . . . Highest-Rated Ally . | . . . Total Orders . | . . . Ally Attacks . | . . . Total Damage . | . . . Kills . | . . . Allies Corrupted . | . . . Allies Melted . | . . . Intel | -11 -10 -10 ------- Run | Yrd Mat Sub Robot Analysis Total . | . . . Derelict Logs Recovered . | . . . Drone Launches . | . . . Drone Recoveries . | . . . Exploration | -11 -10 -10 ------------- Run | Yrd Mat Sub Turns Passed 1069 | 71 893 105 Spaces Moved 433 | 51 329 53 Core 5 | 5 . . Treads . | . . . Legs 428 | 46 329 53 Wheels . | . . . Hover . | . . . Flight . | . . . Fastest Speed 50 | 50 120 120 Average Speed 119 | 113 120 120 Slowest Speed 120 | 120 120 120 Overloaded Moves . | . . . Propulsion Burnouts . | . . . Robots Hopped . | . . . Cave-ins Triggered . | . . . Exploration Rate (%) 12 | 5 23 8 Regions Visited 2 Branch Regions 1 Pre-discovered Areas . | . . . Known Exits Taken . | . . . Unknown Exits Taken 2 | 1 1 . Scrap Searched . | . . . Spaces Dug . | . . . Terrain Destroyed . | . . . Melee . | . . . Projectile . | . . . AOE . | . . . Terrain Rammed . | . . . Walls Destroyed . | . . . Machines Disabled . | . . . Actions | -11 -10 -10 --------- Run | Yrd Mat Sub Total 922 | 62 783 77 Wait 418 | . 410 8 Move 431 | 50 328 53 Hop . | . . . Pick Up 15 | 7 8 . Fast Attach 6 | 5 1 . Attach 2 | . 1 1 Detach . | . . . Swap 3 | . 3 . Drop 6 | . 6 . Fire 41 | . 26 15 Melee . | . . . Ram . | . . . Kick . | . . . Crush . | . . . Escape Stasis . | . . . Rewire . | . . . Trap . | . . . Miscellaneous . | . . . Route ------- -11/Scrapyard -10/Materials -10/Subcaves History --------- Turn | Location | Event 4 | -11/Scrapyard | Discovered new exit (range 16) 72 | -11/Scrapyard | Entered Materials 308 | -10/Materials | Build established: Mutant 690 | -10/Materials | Discovered new exit (range 5) 965 | -10/Materials | Entered Subcaves 1019 | -10/Subcaves | Ambushed by Subdwellers from Twisted Machinery 1057 | -10/Subcaves | Core integrity fell below 50% 1069 | -10/Subcaves | Core integrity fell below 20% 1070 | -10/Subcaves | Destroyed by Q4-6PK(R) with Subdweller Machine Gun Last Messages --------------- Acquired 8 matter. Acquired 10 matter. Acquired 2 matter. G-34 Mercenary destroyed. Lgt. Nuclear Core fries itself beyond repair. Acquired 2 matter. Hpw. Tractor Beam destroyed. Lgt. Ion Engine destroyed. Lgt. Assault Rifle destroyed. Particle Gun fries itself beyond repair. 2T-F8K(R) suffers critical hit (Destroy). 2T-F8K(R) destroyed. Subatomizers dissect the Aluminum Leg. Aluminum Leg fries itself beyond repair. Sml. Laser fries itself beyond repair. Heat Sink fries itself beyond repair. Aluminum Leg destroyed. Aluminum Leg fries itself beyond repair. Aluminum Leg destroyed. Critical hit (Meltdown: +270). Map ----- +----------------------------------------------------+ | ?????????????????????????????????????????????????? | | ?????????????????????????????????????????????????? | | ??????????????????????????????######?????????????? | | ??????????????????????????????# #####????????? | | ???????????????????????????????# ##???????? | | ????????????????????????????????# ??# #??????#? | | ???????????????????????????????## ?# #??????"# | | ???????????????????????????????# # ###?????" | | ???????????????????????????????# ## # ###???" | | ????????????????????????????????# #???" | | ????????????????????????????????#### ###???# | | ???????????????????###?????????????## ####### | | ??????????????????##" ##????????????## ## ## | | ???????????????####" ######???????## " | | ???????????????# " ## #????????# " | | ????????????#### #????????# ###### | | ?????????????" #???????## ##???# | | ??????????????""" ######### ##??## | | ????????????????# ## # ## #???## | | ????????????????# #????? | | ????????????????# ## #????? | | ????????????????## " #?## # # #????? | | ?????????????????######???# ##### ## ? | | ?????????????????????????## #??## ##? | | ????????????????????????##R%% ##???###?? | | ????????????????????????#@% & ##????????? | | ????????????????????????# !* ##??????????# | | ????????????????????????#RR! ###????????????# ### | | ??????????????????????? #???????????????###?? | | ?????????????????????? ??????????????????? | | ????????????????????? ?????????????????? | | ????????????????????# ## ????????????????? | | ????????????????????# #### ???????????????? | | ???????????????????? ????# ??????????????? | | ??????????????????? #????? ?????????????? | | ??????????????????" #?????? #####????????????? | | ??????????????????#####???????###????????????????? | | ?????????????????????????????????????????????????? | | ?????????????????????????????????????????????????? | | ?????????????????????????????????????????????????? | | ?????????????????????????????????????????????????? | | ?????????????????????????????????????????????????? | | ?????????????????????????????????????????????????? | | ?????????????????????????????????????????????????? | | ?????????????????????????????????????????????????? | | ?????????????????????????????????????????????????? | | ?????????????????????????????????????????????????? | | ?????????????????????????????????????????????????? | | ?????????????????????????????????????????????????? | | ?????????????????????????????????????????????????? | +----------------------------------------------------+ Best States ------------- Heat Dissipation 25 Energy Generation 10 Energy Capacity 125 Matter Stores 300 Matter Capacity 300 Sight Range 16 Terrain Scan Density 10 Evasion (%) 55 Item Schematics ----------------- None Robot Schematics ------------------ None Fabricated ------------ Nothing Alien Tech Used ----------------- None Achievements -------------- None Challenges ------------ None Game ------ Seed TrackerAntigravLeg Manual? 0 Play Time 00:08:55 Cumulative 33.6 hours Start 2024.05.07 @ 17:25:26 End 2024.05.07 @ 17:33:09 Sessions 1 Manual Loads 0 Difficulty Rogue Special Mode None Game No. 32 Rogue 32 Adventurer 0 Explorer 0 Win Type - Total 0 Types 0/0/0/0/0/0/0/0/0 Lore% 32 Gallery% 37 Achievement% 32 Wizard Run 0 Options --------- Layout 1 ASCII 0 Keyboard 0 Movement Mouse Keybinds 0 Fullscreen 2 Font 24/Smallcaps Map View 50x35 Zoom Use 0% Tactical HUD 0 Map Filters NONE Filters NONE Steam 0 RUN: 576c7ad6-3557-4149-84a0-9a21e0b6cdd0